bitfinex-derivatives/quotes_SOLF0:USTF0_20260311
["timestamp","ask_amount","ask_price","bid_price","bid_amount"]
[1773197810266,14.46066129,85.754,85.73,2.60958183]
[1773197817872,3.96666129,85.754,85.73,2.60958183]
[1773197818079,3.86981414,85.77,85.741,3.8335156]
[1773197818376,3.86981414,85.77,85.75,2.60958183]
[1773197835699,3.86981414,85.77,85.741,3.8335156]
[1773197837798,3.86981414,85.766,85.74,2.60958183]
[1773197839499,14.23416032,85.763,85.74,2.60958183]
[1773197839698,3.74116032,85.762,85.74,2.60958183]
[1773197840402,3.74116032,85.759,85.72,2.60958183]
[1773197841501,3.74116032,85.759,85.72,6.49880678]
[1773197842102,3.74116032,85.759,85.721,3.88922495]
[1773197842304,3.74116032,85.759,85.73,2.60958183]
[1773197844100,3.74116032,85.757,85.73,2.60958183]
[1773197844303,6.73443622,85.756,85.73,2.60958183]
[1773197844604,3.74116032,85.757,85.73,2.60958183]
[1773197844798,6.73404813,85.756,85.73,2.60958183]
[1773197844998,3.74116032,85.757,85.73,2.60958183]
[1773197847004,3.74116032,85.755,85.721,3.88922495]
[1773197847395,3.74116032,85.76,85.731,3.88922495]
[1773197847600,6.73309645,85.759,85.731,3.88922495]
[1773197847801,6.73309645,85.758,85.731,3.88922495]
[1773197848001,3.74116032,85.76,85.731,3.88922495]
[1773197848201,6.73309646,85.759,85.731,3.88922495]
[1773197848406,6.73309646,85.758,85.731,3.88922495]
[1773197848706,3.74116032,85.76,85.731,3.88922495]
[1773197848906,6.73280283,85.759,85.731,3.88922495]
[1773197849105,6.73280283,85.758,85.731,3.88922495]
[1773197849306,3.74116032,85.76,85.731,3.88922495]
[1773197849506,6.73253353,85.759,85.731,3.88922495]
[1773197849703,6.73253353,85.758,85.731,3.88922495]
[1773197849898,3.74116032,85.76,85.731,3.88922495]
[1773197850107,6.73253353,85.759,85.731,3.88922495]
[1773197850407,3.74116032,85.76,85.731,3.88922495]
[1773197850600,6.73227356,85.759,85.731,3.88922495]
[1773197850905,3.74116032,85.76,85.731,3.88922495]
[1773197851108,6.73227902,85.759,85.731,3.88922495]
[1773197851307,3.74116032,85.76,85.731,3.88922495]
[1773197851508,6.73203366,85.759,85.731,3.88922495]
[1773197851708,3.74116032,85.76,85.731,3.88922495]
[1773197851898,6.73202917,85.759,85.731,3.88922495]
[1773197852101,3.74116032,85.76,85.731,3.88922495]
[1773197852305,6.73177794,85.759,85.731,3.88922495]
[1773197852602,3.74116032,85.76,85.731,3.88922495]
[1773197852800,6.73245587,85.759,85.731,3.88922495]
[1773197853003,3.74116032,85.76,85.731,3.88922495]
[1773197853210,6.73312126,85.759,85.731,3.88922495]
[1773197853401,3.74116032,85.76,85.731,3.88922495]
[1773197853599,6.73383853,85.759,85.731,3.88922495]
[1773197853801,3.74116032,85.76,85.731,3.88922495]
[1773197854009,6.73384073,85.759,85.731,3.88922495]
[1773197854213,3.74116032,85.76,85.731,3.88922495]
[1773197854404,6.73451856,85.759,85.731,3.88922495]
[1773197854605,3.74116032,85.76,85.731,3.88922495]
[1773197854807,6.73451856,85.759,85.731,3.88922495]
[1773197855003,3.74116032,85.76,85.731,3.88922495]
[1773197855303,6.73451631,85.759,85.731,3.88922495]
[1773197855505,3.74116032,85.76,85.731,3.88922495]
[1773197855714,6.73452829,85.759,85.731,3.88922495]
[1773197855914,3.74116032,85.76,85.731,3.88922495]
[1773197856112,6.73452829,85.759,85.731,3.88922495]
[1773197856414,3.74116032,85.76,85.731,3.88922495]
[1773197856606,6.73448506,85.759,85.731,3.88922495]
[1773197856808,3.74116032,85.76,85.731,3.88922495]
[1773197866920,6.71874142,85.759,85.731,3.88922495]
[1773197867126,6.71874142,85.758,85.731,3.88922495]
[1773197867314,3.74116032,85.76,85.731,3.88922495]
[1773197867516,6.71884788,85.759,85.731,3.88922495]
[1773197867719,6.71884788,85.758,85.731,3.88922495]
[1773197867913,3.74116032,85.76,85.731,3.88922495]
[1773197868114,6.71810702,85.759,85.731,3.88922495]
[1773197868421,6.71810702,85.758,85.731,3.88922495]
[1773197868622,6.71810702,85.757,85.731,3.88922495]
[1773197868821,3.74116032,85.76,85.731,3.88922495]
[1773197869015,6.71839406,85.759,85.731,3.88922495]
[1773197869323,6.71839406,85.758,85.731,3.88922495]
[1773197869523,6.71839406,85.757,85.731,3.88922495]
[1773197869724,3.74116032,85.76,85.731,3.88922495]
[1773197869924,6.71874155,85.759,85.731,3.88922495]
[1773197870121,6.71874155,85.758,85.731,3.88922495]
[1773197870326,6.71874155,85.757,85.731,3.88922495]
[1773197870529,3.74116032,85.76,85.731,3.88922495]
[1773197870825,6.71927828,85.759,85.731,3.88922495]
[1773197871026,6.71927828,85.758,85.731,3.88922495]
[1773197871225,14.49962933,85.754,85.721,3.80080189]
[1773197871421,4.00562933,85.753,85.721,3.80080189]
[1773197871928,10.494,85.752,85.721,3.80080189]
[1773197872226,14.49962933,85.752,85.721,3.80080189]
[1773197875228,4.00562933,85.752,85.721,3.80080189]
[1773197883338,10.493,85.766,85.74,2.60968194]
[1773197883541,6.72976712,85.765,85.731,3.80080189]
[1773197883742,6.72976712,85.764,85.731,3.80080189]
[1773197883943,6.72976712,85.763,85.731,3.80080189]
[1773197884145,6.72976712,85.762,85.731,3.80080189]
[1773197884346,6.72976712,85.761,85.731,3.80080189]
[1773197884548,6.72976712,85.76,85.731,3.80080189]
[1773197884741,4.00562933,85.763,85.731,3.80080189]
[1773197884942,6.729891,85.762,85.731,3.80080189]
[1773197885146,6.729891,85.761,85.731,3.80080189]
[1773197885440,6.729891,85.76,85.731,3.80080189]
[1773197885646,4.00562933,85.763,85.731,3.80080189]
[1773197885846,6.73011585,85.762,85.731,3.80080189]
[1773197886146,6.73011585,85.761,85.731,3.80080189]
[1773197886349,6.72766954,85.76,85.731,3.80080189]
[1773197886546,4.00562933,85.763,85.731,3.80080189]
[1773197886746,6.72766954,85.762,85.731,3.80080189]
[1773197886949,6.72766954,85.761,85.74,2.60968194]
[1773197887144,10.492,85.772,85.741,3.80080189]
[1773197887343,6.72726389,85.771,85.741,3.80080189]
[1773197887546,6.72726389,85.77,85.741,3.80080189]
[1773197887850,10.73289322,85.769,85.741,3.80080189]
[1773197888145,10.73289322,85.768,85.741,3.80080189]
[1773197888351,6.72670691,85.767,85.741,3.80080189]
[1773197888540,6.72670691,85.766,85.741,3.80080189]
[1773197888745,6.72670691,85.765,85.741,3.80080189]
[1773197888940,6.72670691,85.764,85.741,3.80080189]
[1773197889145,6.72670691,85.763,85.741,3.80080189]
[1773197889349,4.00562933,85.768,85.741,3.80080189]
[1773197889549,6.72593116,85.767,85.741,3.80080189]
[1773197889749,6.72593116,85.766,85.741,3.80080189]
[1773197889950,6.72593116,85.765,85.741,3.80080189]
[1773197890250,6.72593116,85.764,85.741,3.80080189]
[1773197890450,6.72593116,85.763,85.741,3.80080189]
[1773197890750,4.00562933,85.768,85.741,3.80080189]
[1773197890949,6.72668767,85.767,85.741,3.80080189]
[1773197891253,4.00562933,85.784,85.75,2.60968194]
[1773197891456,4.00562933,85.773,85.73,2.60968194]
[1773197891654,4.00562933,85.771,85.73,2.60968194]
[1773197891854,4.00562933,85.769,85.73,2.60968194]
[1773197892047,4.00562933,85.767,85.73,2.60968194]
[1773197892253,4.00562933,85.765,85.73,2.60968194]
[1773197892454,4.00562933,85.763,85.73,2.60968194]
[1773197892652,4.00562933,85.761,85.73,2.60968194]
[1773197893158,10.86450906,85.76,85.73,2.60968194]
[1773197893356,6.85887973,85.759,85.73,2.60968194]
[1773197893555,6.85887973,85.758,85.73,2.60968194]
[1773197893755,4.00562933,85.76,85.73,2.60968194]
[1773197893951,6.85892052,85.759,85.73,2.60968194]
[1773197894159,4.00562933,85.76,85.73,2.60968194]
[1773197894356,4.00562933,85.76,85.722,10.498]
[1773197894357,4.00562933,85.786,85.75,2.60968194]
[1773197895352,4.00562933,85.784,85.75,2.60968194]
[1773197906460,3.98885449,85.782,85.75,2.60968194]
[1773197906660,3.98885449,85.78,85.75,2.60968194]
[1773197906965,3.98885449,85.778,85.75,2.60968194]
[1773197907159,6.78006988,85.777,85.75,2.60968194]
[1773197907456,3.98885449,85.778,85.75,2.60968194]
[1773197907662,3.98885449,85.778,85.75,6.31809517]
[1773197910265,3.98885449,85.777,85.741,3.70841323]
[1773197910464,3.98885449,85.775,85.731,3.70841323]
[1773197910766,3.98885449,85.773,85.731,3.70841323]
[1773197911066,3.98885449,85.771,85.731,3.70841323]
[1773197911265,3.98885449,85.769,85.731,3.70841323]
[1773197911466,3.98885449,85.766,85.731,3.70841323]
[1773197912564,3.98885449,85.764,85.722,10.498]
[1773197912965,3.98885449,85.764,85.72,2.60968194]
[1773197912966,3.98885449,85.764,85.725,3.70841323]
[1773197913263,3.98885449,85.764,85.73,2.60968194]
[1773197915568,3.98885449,85.764,85.73,2.60959053]
[1773197916771,3.98885449,85.764,85.725,3.70841323]
[1773197917566,4.02971936,85.754,85.721,3.6763246]
[1773197917770,4.02971936,85.779,85.74,6.28591513]
[1773197917972,4.02971936,85.777,85.74,6.28591513]
[1773197918169,4.02971936,85.775,85.74,6.28591513]
[1773197918471,4.02971936,85.773,85.74,6.28591513]
[1773197918863,6.77799329,85.772,85.74,6.28591513]
[1773197919069,4.02971936,85.773,85.74,6.28591513]
[1773197919269,6.7796966,85.772,85.74,6.28591513]
[1773197919470,4.02971936,85.773,85.74,6.28591513]
[1773197919673,10.80971888,85.772,85.74,6.28591513]
[1773197919874,4.02971936,85.772,85.74,6.28591513]
[1773197920274,6.78051537,85.771,85.74,6.28591513]
[1773197920475,4.02971936,85.771,85.74,6.28591513]
[1773197922381,4.02971936,85.767,85.74,6.28591513]
[1773197924474,4.02971936,85.767,85.731,3.6763246]
[1773197924679,4.02971936,85.765,85.731,3.6763246]
[1773197927082,6.7149166,85.764,85.731,3.6763246]
[1773197927385,4.02971936,85.765,85.731,3.6763246]
[1773197927582,6.71567996,85.764,85.731,3.6763246]
[1773197927882,4.02971936,85.765,85.731,3.6763246]
[1773197928183,6.71567996,85.764,85.731,3.6763246]
[1773197928386,4.02971936,85.765,85.731,3.6763246]
[1773197928588,6.71650096,85.764,85.731,3.6763246]
[1773197928781,4.02971936,85.765,85.731,3.6763246]
[1773197928982,6.71649898,85.764,85.731,3.6763246]
[1773197929176,4.02971936,85.765,85.731,3.6763246]
[1773197929386,3.73769184,85.763,85.731,3.6763246]
[1773197933787,3.73769184,85.761,85.731,3.6763246]
[1773197934578,3.73769184,85.761,85.73,2.60959053]
[1773197935287,3.73769184,85.759,85.721,3.71937758]
[1773197935486,3.73769184,85.757,85.721,3.71937758]
[1773197935688,2.60959053,85.77,85.721,3.71937758]
[1773197935689,3.73769184,85.755,85.721,3.71937758]
[1773197935888,3.73769184,85.753,85.721,3.71937758]
[1773197936482,3.73769184,85.753,85.72,2.60959053]
[1773197938188,3.73769184,85.753,85.72,6.32896811]
[1773197938491,3.73769184,85.753,85.721,3.71937758]
[1773197939296,3.73769184,85.753,85.73,2.60959053]
[1773197941400,3.73769184,85.753,85.72,2.60959053]
[1773197943998,10.493,85.765,85.731,3.71937758]
[1773197944195,6.71055924,85.764,85.731,3.71937758]
[1773197944397,6.71055924,85.763,85.731,3.71937758]
[1773197944597,6.71055924,85.762,85.731,3.71937758]
[1773197944798,6.71055924,85.761,85.731,3.71937758]
[1773197944999,3.73769184,85.759,85.722,14.21737758]
[1773197945200,3.73769184,85.757,85.722,14.21737758]
[1773197945502,3.73769184,85.757,85.723,3.71937758]
[1773197948097,3.73769184,85.757,85.73,2.60959053]
[1773197948302,10.493,85.765,85.73,2.60959053]
[1773197948502,3.73769184,85.764,85.73,2.60959053]
[1773197950904,6.34728237,85.76,85.715,3.71937758]
[1773197951110,3.73769184,85.758,85.73,2.60959053]
[1773197951310,3.73769184,85.778,85.731,3.71937758]
[1773197951508,3.73769184,85.776,85.731,3.71937758]
[1773197951708,3.73769184,85.774,85.731,3.71937758]
[1773197951902,3.73769184,85.772,85.731,3.71937758]
[1773197952112,3.73769184,85.77,85.731,3.71937758]
[1773197952308,6.71226324,85.769,85.731,3.71937758]
[1773197952505,10.493,85.764,85.731,3.71937758]
[1773197952708,3.73769184,85.77,85.731,3.71937758]
[1773197952908,6.71328479,85.769,85.731,3.71937758]
[1773197953115,6.71328479,85.768,85.731,3.71937758]
[1773197953309,6.71328479,85.767,85.731,3.71937758]
[1773197953510,6.71328479,85.766,85.731,3.71937758]
[1773197953813,3.73769184,85.77,85.731,3.71937758]
[1773197954006,10.45485786,85.769,85.731,3.71937758]
[1773197954307,10.45485786,85.768,85.731,3.71937758]
[1773197954509,6.71716602,85.767,85.731,3.71937758]
[1773197954709,6.71716602,85.766,85.731,3.71937758]
[1773197954909,6.71716602,85.765,85.731,3.71937758]
[1773197955110,3.73769184,85.768,85.731,3.71937758]
[1773197955311,6.72024547,85.767,85.731,3.71937758]
[1773197955512,6.72024547,85.766,85.74,2.60959053]
[1773197955711,6.72024547,85.765,85.74,2.60959053]
[1773197956011,3.73769184,85.768,85.74,2.60959053]
[1773197956209,6.72028076,85.767,85.74,2.60959053]
[1773197956407,6.72028076,85.766,85.74,2.60959053]
[1773197956608,6.72028076,85.765,85.74,2.60959053]
[1773197956911,6.72030843,85.764,85.74,2.60959053]
[1773197957114,5.44697629,85.788,85.75,2.60959053]
[1773197958008,5.44697629,85.788,85.76,2.60959053]
[1773197959413,5.34282095,85.786,85.76,2.60959053]
[1773197960610,5.34259739,85.782,85.734,10.496]
[1773197960818,5.34259739,85.782,85.75,2.60959053]
[1773197962410,5.3343407,85.78,85.75,2.60959053]
[1773197963206,5.34404125,85.774,85.74,2.60959053]
[1773197964106,5.34404125,85.774,85.75,2.60959053]
[1773197968413,5.32875661,85.785,85.76,2.60959053]
[1773197970817,5.32875661,85.785,85.76,0.00059053]
[1773197971621,5.32875661,85.785,85.75,2.60959053]
[1773197974323,5.35106292,85.784,85.75,2.60959053]
[1773197977321,5.36568128,85.844,85.77,2.60959053]
[1773197977520,5.36568128,85.842,85.8,2.60959053]
[1773197977722,5.36568128,85.84,85.8,2.60511441]
[1773197978023,5.36568128,85.838,85.8,2.60511441]
[1773197978222,5.36568128,85.836,85.8,2.60511441]
[1773197978422,6.65242684,85.835,85.8,2.60511441]
[1773197978724,6.65242684,85.834,85.8,2.60511441]
[1773197978918,5.36568128,85.836,85.8,2.60511441]
[1773197979122,72.59499601,86.001,85.82,2.60511441]
[1773197979123,5.36690489,85.859,85.82,2.60511441]
[1773197979313,42.45555962,85.899,85.82,2.60511441]
[1773197979314,12.00887734,85.858,85.82,2.60511441]
[1773197979516,5.36690489,85.856,85.82,2.60511441]
[1773197979714,5.36690489,85.853,85.82,2.60511441]
[1773197979921,6.64197245,85.852,85.82,2.60511441]
[1773197980118,6.64197245,85.851,85.82,2.60511441]
[1773197980313,5.36690489,85.853,85.81,2.60511441]
[1773197980723,5.36690489,85.853,85.82,2.60511441]
[1773197985122,5.38116244,85.858,85.82,2.60511441]
[1773197985720,5.38116244,85.853,85.782,14.40687598]
[1773197985925,5.38116244,85.853,85.81,2.60511441]
[1773197986726,5.38116244,85.841,85.81,2.60511441]
[1773197987922,5.41183829,85.837,85.8,2.60511441]
[1773197988519,5.41183829,85.827,85.772,10.492]
[1773197988723,5.41183829,85.827,85.79,2.60511441]
[1773197988931,5.41183829,85.827,85.754,14.40687598]
[1773197989124,5.41183829,85.827,85.79,2.60511441]
[1773197989326,15.89683829,85.827,85.79,2.60511441]
[1773197990629,5.40853174,85.826,85.8,2.60511441]
[1773197991325,5.42415459,85.824,85.762,10.493]
[1773197991530,5.42415459,85.824,85.695,35.91444112]
[1773197991531,5.42415459,85.824,85.78,2.60511441]
[1773197991723,5.42415459,85.824,85.745,14.40687598]
[1773197991924,5.42415459,85.824,85.79,2.60511441]
[1773197992127,5.42415459,85.824,85.745,14.40687598]
[1773197992327,5.42415459,85.824,85.738,34.96]
[1773197992328,5.42415459,85.824,85.79,2.60511441]
[1773197992529,5.42415459,85.824,85.746,14.40687598]
[1773197992822,5.42415459,85.824,85.734,21.7743612]
[1773197992823,5.42415459,85.866,85.81,2.60511441]
[1773197993025,5.42415459,85.866,85.84,2.60511441]
[1773197993433,5.42415459,85.866,85.85,0.00011441]
[1773197993620,5.42415459,85.866,85.84,2.60511441]
[1773197994125,5.42534558,85.882,85.86,2.60511441]
[1773197994626,5.42534558,85.882,85.777,163.204]
[1773197994627,5.42534558,85.908,85.87,2.60511441]
[1773197995421,2.60511441,85.92,85.87,2.60511441]
[1773197995422,5.41939505,85.906,85.87,2.60511441]
[1773197996429,5.41939505,85.9,85.87,2.60511441]
[1773197997331,5.43806817,85.898,85.87,2.60511441]
[1773197999330,5.43220196,85.896,85.87,0.00011441]
[1773198000128,5.43220196,85.896,85.86,2.60511441]
[1773198000435,5.43220196,85.89,85.85,2.60511441]
[1773198001436,5.43220196,85.89,85.86,2.60511441]
[1773198001832,15.91675968,85.88,85.85,2.60511441]
[1773198002135,5.43775968,85.879,85.85,0.00011441]
[1773198003435,10.479,85.877,85.85,0.00011441]
[1773198003935,5.43137804,85.876,85.85,0.00011441]
[1773198004935,5.43273865,85.872,85.84,2.60511441]
[1773198005740,5.43273865,85.872,85.83,2.60511441]
[1773198006640,5.43273865,85.872,85.84,2.60511441]
[1773198007037,5.43923264,85.869,85.809,10.487]
[1773198007236,5.43923264,85.869,85.781,14.40687598]
[1773198007438,5.43923264,85.869,85.82,2.60511441]
[1773198008444,5.43923264,85.864,85.82,2.60511441]
[1773198008844,5.43923264,85.849,85.8,2.60511441]
[1773198009240,5.43923264,85.849,85.81,2.60511441]
[1773198010044,5.49447888,85.846,85.8,2.60511441]
[1773198010443,5.49447888,85.846,85.81,2.60511441]
[1773198013839,5.49447888,85.846,85.8,2.60511441]
[1773198014740,5.49447888,85.846,85.81,2.60511441]
[1773198015542,6.63718816,85.876,85.773,163.212]
[1773198015751,5.5177275,85.897,85.87,2.60511441]
[1773198018742,5.5177275,85.897,85.844,10.483]
[1773198019240,5.5177275,85.897,85.87,2.60511441]
[1773198022451,22.96640735,85.956,85.826,3.76478029]
[1773198022452,3.79649087,85.894,85.826,3.76478029]
[1773198022645,3.79649087,85.894,85.86,2.60511441]
[1773198024447,3.79649087,85.89,85.86,2.60511441]
[1773198025943,3.79649087,85.945,85.881,3.76478029]
[1773198026145,3.79649087,85.919,85.87,2.60511441]
[1773198026448,3.79649087,85.919,85.863,3.76478029]
[1773198026649,3.79649087,85.919,85.88,2.60511441]
[1773198026850,3.79649087,85.919,85.89,2.60511441]
[1773198027250,3.79649087,85.919,85.88,2.60511441]
[1773198029448,3.79649087,85.919,85.873,10.48]
[1773198029748,3.79649087,85.919,85.89,2.60511441]
[1773198029954,3.79649087,85.934,85.89,2.60511441]
[1773198030943,10.474,85.922,85.881,3.76478029]
[1773198031852,3.79649087,85.929,85.881,3.76478029]
[1773198032649,3.79649087,85.929,85.89,2.60511441]
[1773198032855,3.79649087,85.929,85.9,2.60511441]
[1773198033352,3.79649087,85.929,85.891,3.76478029]
[1773198033655,10.472,85.938,85.9,2.60511441]
[1773198033850,14.26849087,85.938,85.891,3.76478029]
[1773198034051,3.79649087,85.937,85.891,3.76478029]
[1773198038461,10.472,85.935,85.891,3.76478029]
[1773198040355,10.472,85.935,85.901,3.97891829]
[1773198044162,4.02895803,85.931,85.89,2.59961764]
[1773198045479,4.02895803,85.929,85.89,2.59961764]
[1773198046381,10.473,85.926,85.89,2.59961764]
[1773198047376,10.473,85.926,85.889,3.97891829]
[1773198047683,5.02586341,85.999,85.921,3.97891829]
[1773198047882,5.02586341,85.999,85.95,2.59961764]
[1773198048183,5.02586341,85.989,85.95,2.59961764]
[1773198048370,5.02586341,85.989,85.899,14.37592027]
[1773198048371,5.02586341,85.979,85.93,2.59961764]
[1773198048681,5.02586341,85.979,85.94,2.59961764]
[1773198051584,4.98551315,85.997,85.97,2.59961764]
[1773198051879,4.98551315,85.997,85.96,2.59961764]
[1773198053079,4.98551315,85.997,85.958,10.469]
[1773198053080,4.9794052,86.01,85.97,2.59961764]
[1773198053484,7.57902284,86.01,85.96,2.59961764]
[1773198054079,7.57902284,86.01,85.97,2.59961764]
[1773198054583,4.9794052,86.01,85.97,2.59961764]
[1773198055684,2.59961764,86.02,85.97,2.59961764]
[1773198055685,4.97175889,86.008,85.97,2.59961764]
[1773198056385,4.97175889,86.008,85.96,2.59961764]
[1773198056780,4.97175889,86.008,85.97,2.59961764]
[1773198058580,4.96645386,86.006,85.96,2.59961764]
[1773198059082,4.96645386,86.006,85.97,2.59961764]
[1773198060587,4.96645386,86.006,85.96,2.59961764]
[1773198060887,10.463,86.013,85.97,2.59961764]
[1773198061287,4.96963195,86.012,85.98,2.59961764]
[1773198061479,10.461,86.022,85.98,2.59961764]
[1773198062679,10.46,86.031,85.99,2.59961764]
[1773198062880,4.96963195,86.101,86.01,2.59961764]
[1773198063080,4.97310952,86.059,86.01,2.59961764]
[1773198063284,4.97310952,86.055,86.01,2.59961764]
[1773198063690,4.97310952,86.055,86.02,2.59961764]
[1773198064188,4.97310952,86.055,86.01,2.59961764]
[1773198064690,10.458,86.051,86.01,2.59961764]
[1773198066192,4.97310952,86.055,86.02,2.59961764]
[1773198066381,10.457,86.061,86.02,2.59961764]
[1773198067686,5.0078836,86.089,86.04,2.59961764]
[1773198068491,5.0078836,86.079,86.03,2.59961764]
[1773198069491,4.98773528,86.125,86.03,2.59961764]
[1773198069691,4.98773528,86.176,86.09,2.59961764]
[1773198069895,4.98773528,86.149,86.1,2.59961764]
[1773198071386,4.95242341,86.146,86.1,2.59961764]
[1773198071585,4.95242341,86.146,86.083,10.454]
[1773198072594,4.95242341,86.146,86.08,7.69941807]
[1773198074500,4.95242341,86.146,86.084,10.454]
[1773198076200,4.96670309,86.143,86.084,10.454]
[1773198076598,4.96670309,86.143,86.08,7.69941807]
[1773198077495,4.97018132,86.139,86.08,7.69941807]
[1773198077895,4.97018132,86.139,86.061,10.457]
[1773198079304,4.97018132,86.139,86.07,10.456]
[1773198079305,10.449,86.126,86.07,10.456]
[1773198079898,4.95659245,86.135,86.07,10.456]
[1773198081504,4.94426529,86.133,86.07,10.456]
[1773198082101,4.94426529,86.133,86.079,10.454]
[1773198082298,4.94426529,86.133,86.08,7.69941807]
[1773198082497,4.94426529,86.159,86.08,7.69941807]
[1773198082705,454.88214658,86.181,86.08,7.69941807]
[1773198082706,4.94426529,86.158,86.1,10.452]
[1773198083700,4.93445309,86.146,86.09,10.453]
[1773198084707,4.93445309,86.136,86.06,7.69941807]
[1773198085403,7.69941807,86.15,86.06,7.69941807]
[1773198085404,4.9809016,86.125,86.074,10.455]
[1773198086611,7.69941807,86.15,86.028,34.96]
[1773198086612,4.9809016,86.111,86.028,34.96]
[1773198086802,4.9809016,86.111,86.05,7.69941807]
[1773198087206,4.9809016,86.111,86.067,10.456]
[1773198087403,4.91715361,86.124,86.05,7.69941807]
[1773198087604,4.91715361,86.139,86.051,34.96]
[1773198087807,15.36415361,86.138,86.085,10.454]
[1773198088006,4.91715361,86.137,86.085,10.454]
[1773198089307,5.01049433,86.119,86.04,7.69941807]
[1773198090009,5.01049433,86.119,86.06,7.69941807]
[1773198090309,5.01049433,86.119,86.04,7.69941807]
[1773198090506,5.01049433,86.107,86.052,10.458]
[1773198090710,5.01049433,86.107,86.04,7.69941807]
[1773198091106,5.01049433,86.107,86.03,7.69941807]
[1773198091302,4.98897756,86.105,86.051,10.458]
[1773198091811,4.98897756,86.103,86.051,10.458]
[1773198092809,4.98897756,86.099,86.01,7.69941807]
[1773198093407,4.98897756,86.099,86.03,7.69941807]
[1773198093904,4.94613139,86.079,86.033,10.46]
[1773198095910,10.455,86.078,86.01,7.69941807]
[1773198096714,4.89190445,86.077,86.01,7.69941807]
[1773198097418,4.89190445,86.077,86.031,10.46]
[1773198098415,10.454,86.087,86.039,10.459]
[1773198098624,4.90083531,86.092,86.03,7.69941807]
[1773198099116,4.90083531,86.092,86.036,10.46]
[1773198100413,4.91245856,86.088,86.036,10.46]
[1773198101220,4.93777931,86.085,86.036,10.46]
[1773198108139,4.93036756,86.083,86.02,7.71032916]
[1773198108336,4.93036756,86.079,85.99,7.71032916]
[1773198108735,10.457,86.058,86.009,10.463]
[1773198109040,4.95590233,86.057,86.009,10.463]
[1773198109835,10.458,86.054,86.009,10.463]
[1773198110040,4.95590233,86.053,86.001,10.464]
[1773198110541,4.95590233,86.053,85.99,7.71032916]
[1773198110744,4.95590233,86.053,86.008,10.463]
[1773198111443,4.95627463,86.051,85.99,7.71032916]
[1773198111642,4.95627463,86.051,85.97,7.71032916]
[1773198112346,4.95627463,86.04,85.991,10.465]
[1773198113539,7.54994125,86.04,85.991,10.465]
[1773198113738,4.93263942,86.039,85.991,10.465]
[1773198115131,10.46,86.038,85.991,10.465]
[1773198115335,20.904,86.102,85.982,10.466]
[1773198115336,4.93265028,86.029,85.982,10.466]
[1773198116144,4.93265028,86.029,85.99,2.59366662]
[1773198116941,4.93265028,86.025,85.98,2.59366662]
[1773198118737,4.93265028,86.025,85.99,2.59366662]
[1773198119245,4.93265028,86.025,85.977,10.467]
[1773198119541,4.93265028,86.025,85.952,34.96]
[1773198119542,4.93265028,86.025,85.98,2.59366662]
[1773198119742,4.95936761,86.024,85.99,2.59366662]
[1773198119938,4.95936761,86.024,85.992,10.465]
[1773198120139,4.95936761,86.039,85.992,10.465]
[1773198120942,4.95936761,86.037,85.99,2.59366662]
[1773198121847,4.95936761,86.037,86.0,2.59366662]
[1773198122347,4.956177,86.031,86.0,2.59366662]
[1773198122546,4.956177,86.031,85.99,2.59366662]
[1773198124840,10.461,86.028,85.99,2.59366662]
[1773198125144,4.97526689,86.027,85.99,2.59366662]
[1773198126753,4.97526689,86.027,86.0,2.59366662]
[1773198129155,4.97526689,86.027,85.99,2.59366662]
[1773198130954,4.97526689,86.027,85.98,2.59366662]
[1773198132352,4.95649776,86.017,85.98,2.59366662]
[1773198135153,4.95649776,86.017,85.974,10.467]
[1773198135458,4.95226072,85.989,85.94,2.59366662]
[1773198135754,4.95226072,85.989,85.876,35.91444112]
[1773198135755,4.95226072,85.976,85.93,2.59366662]
[1773198136956,4.95226072,85.965,85.92,2.59366662]
[1773198137460,4.95226072,85.965,85.93,2.59366662]
[1773198138362,4.97220487,85.963,85.93,2.59366662]
[1773198138862,4.97220487,85.963,85.92,2.59366662]
[1773198141456,4.96393993,85.961,85.92,2.59366662]
[1773198142259,4.96393993,85.961,85.93,2.59366662]
[1773198142467,4.96393993,85.959,85.93,2.59366662]
[1773198143757,4.95440775,85.956,85.92,2.59366662]
[1773198145166,4.95440775,85.956,85.91,2.59366662]
[1773198146467,5.03419288,85.954,85.91,2.59366662]
[1773198149673,5.04245614,85.947,85.91,2.59366662]
[1773198151473,5.04245614,85.947,85.881,10.479]
[1773198151673,20.932,85.985,85.88,2.59366662]
[1773198151674,5.00554341,85.929,85.88,2.59366662]
[1773198151969,5.00554341,85.919,85.87,2.59366662]
[1773198153473,5.00316607,85.909,85.87,2.59366662]
[1773198154074,5.00316607,85.906,85.87,2.59366662]
[1773198158077,5.00316607,85.906,85.806,34.96]
[1773198158078,5.00316607,85.906,85.88,2.59366662]
[1773198158978,5.00316607,85.906,85.87,2.59366662]
[1773198159577,2.59366662,85.92,85.87,2.60141029]
[1773198159578,4.98672494,85.9,85.87,2.60141029]
[1773198159774,4.98672494,85.9,85.86,2.60141029]
[1773198159975,4.98672494,85.9,85.87,2.60141029]